[Event "8th Gibraltar U16-Junior 2018"]
[Site "Caleta"]
[Date "2018.08.17"]
[Round "1"]
[White "Seleznev, Egor"]
[Black "Samworth Calvier, Juju"]
[Result "1/2-1/2"]
[ECO "A85"]
[WhiteElo "1388"]
[BlackElo "1816"]
[Annotator "NA RC"]
[PlyCount "196"]
[EventDate "2018.08.17"]
[EventType "swiss"]
[EventCountry "GGB"]
[SourceTitle "playchess.com"]
[Source "ChessBase"]
[SourceQuality "1"]
[TimeControl "6600+10"]

1. d4 {[%emt 0:00:00]} e6 {[%emt 0:00:00]} 2. Nf3 {[%emt 0:00:11]} f5 {[%emt 0:00:23]} 3. c4 {[%emt 0:01:20]} Nf6 {[%emt 0:00:19]} 4. Nc3 {[%emt 0:00:37]} Bb4 {[%emt 0:00:51]} 5. Bg5 {[%emt 0:00:57]} O-O {[%emt 0:01:06]} 6. e3 {[%emt 0:00:47]} b6 {[%emt 0:01:43]} 7. Bd3 {[%emt 0:00:58]} Bb7 {[%emt 0:00:58]} 8. O-O {[%emt 0:01:12]} Qe8 {[%emt 0:02:52]} 9. Nd2 {[%emt 0:04:35]} Qg6 {[%emt 0:02:20]} 10. Nf3 {[%emt 0:04:49]} Ne4 {[%emt 0:04:31]} 11. Bf4 {[%emt 0:05:43]} Bxc3 {[%emt 0:02:14]} 12. Bxe4 {[%emt 0:02:06]} Bxe4 {[%emt 0:02:13]} 13. bxc3 {[%emt 0:00:54]} d6 {[%emt 0:00:42]} 14. Bg3 {[%emt 0:01:36]} Nd7 {[%emt 0:04:01]} 15. Ne1 {[%emt 0:02:43]} e5 {[%emt 0:02:52]} 16. f3 {[%emt 0:02:03]} Bb7 {[%emt 0:00:16]} 17. Nd3 {[%emt 0:02:06]} Qe6 {[%emt 0:11:42]} 18. Qb3 {[%emt 0:03:28]} a5 {[%emt 0:08:05]} 19. a4 {[%emt 0:03:02]} Ba6 {[%emt 0:00:37]} 20. Nb2 {[%emt 0:02:14]} Rae8 {[%emt 0:06:54]} 21. Rfe1 {[%emt 0:03:53]} h5 {[%emt 0:05:59]} 22. e4 {[%emt 0:05:08]} Kh8 {[%emt 0:04:51]} 23. Rad1 {[%emt 0:04:57]} fxe4 {[%emt 0:08:31]} 24. Rxe4 {[%emt 0:02:47]} Nf6 {[%emt 0:00:06]} 25. Re3 {[%emt 0:03:02]} Qf5 {[%emt 0:03:14]} 26. Bf2 {[%emt 0:04:20]} e4 {[%emt 0:04:50]} 27. Qc2 {[%emt 0:07:38]} d5 {[%emt 0:12:58]} 28. Bg3 {[%emt 0:05:47]} dxc4 {[%emt 0:04:19]} 29. Be5 {[%emt 0:06:17]} Nd5 {[%emt 0:04:24]} 30. Rxe4 {[%emt 0:02:03]} Ne3 {[%emt 0:00:26]} 31. Qd2 {[%emt 0:01:52]} Nxd1 {[%emt 0:00:22]} 32. Nxd1 {[%emt 0:00:13]} Bb7 {[%emt 0:01:28]} 33. Ne3 {[%emt 0:02:10]} Qg5 {[%emt 0:00:48]} 34. f4 {[%emt 0:02:16]} Qg6 {[%emt 0:01:29]} 35. f5 {[%emt 0:02:01]} Rxf5 {[%emt 0:01:37]} 36. Bxg7+ {[%emt 0:03:28]} Kxg7 {[%emt 0:00:01]} 37. Nxf5+ {[%emt 0:01:11]} Kf8 {[%emt 0:00:12]} 38. Rxe8+ {[%emt 0:01:23]} Qxe8 {[%emt 0:02:11]} 39. Qh6+ {[%emt 0:01:10]} Kf7 {[%emt 0:00:01]} 40. Qxh5+ {[%emt 0:01:17]} Kf8 {[%emt 0:00:01]} 41. Qxe8+ {[%emt 0:02:37]} Kxe8 {[%emt 0:00:01]} 42. Ne3 {[%emt 0:00:32]} Bc6 {[%emt 0:00:02]} 43. Nxc4 {[%emt 0:00:29]} Bxa4 {[%emt 0:00:02]} 44. Kf2 {[%emt 0:00:38]} Ke7 {[%emt 0:00:55]} 45. Ke3 {[%emt 0:01:37]} Ke6 {[%emt 0:00:12]} 46. g4 {[%emt 0:01:45]} Bd1 {[%emt 0:00:53]} 47. h3 {[%emt 0:01:16]} Kd5 {[%emt 0:00:00]} 48. Na3 {[%emt 0:00:35]} c5 {[%emt 0:00:39]} 49. c4+ {[%emt 0:00:23]} Kd6 {[%emt 0:00:11]} 50. Nb5+ {[%emt 0:00:46]} Ke6 {[%emt 0:00:25]} 51. dxc5 {[%emt 0:00:21]} bxc5 {[%emt 0:00:01]} 52. Kf4 {[%emt 0:00:19]} Be2 {[%emt 0:00:17]} 53. Na3 {[%emt 0:00:13]} Kf6 {[%emt 0:00:02]} 54. h4 {[%emt 0:00:06]} a4 {[%emt 0:00:57]} 55. h5 {[%emt 0:00:28]} Kg7 {[%emt 0:00:27]} 56. Kg5 {[%emt 0:00:55]} Kf7 {[%emt 0:00:23]} 57. Kf5 {[%emt 0:00:49]} Kg7 {[%emt 0:00:09]} 58. Kg5 {[%emt 0:00:23]} Kf7 {[%emt 0:00:03]} 59. h6 {[%emt 0:00:05]} Bd3 {[%emt 0:00:02]} 60. Kf4 {[%emt 0:00:26]} Kg6 {[%emt 0:00:26]} 61. g5 {[%emt 0:00:06]} Kf7 {[%emt 0:00:01]} 62. Ke5 {[%emt 0:00:12]} Kg6 {[%emt 0:00:28]} 63. Kd5 {[%emt 0:00:37]} Kxg5 {[%emt 0:00:01]} 64. h7 {[%emt 0:00:14]} Bxh7 {[%emt 0:00:02]} 65. Kxc5 {[%emt 0:00:02]} Be4 {[%emt 0:00:05]} 66. Kb4 {[%emt 0:00:08]} Kf6 {[%emt 0:00:27]} 67. Kxa4 {[%emt 0:00:11]} Ke6 {[%emt 0:00:07]} 68. Ka5 {[%emt 0:00:07]} Kd7 {[%emt 0:00:03]} 69. Kb6 {[%emt 0:00:09]} Bg2 {[%emt 0:00:14]} 70. Nc2 {[%emt 0:00:15]} Be4 {[%emt 0:00:06]} 71. Nb4 {[%emt 0:00:12]} Bf3 {[%emt 0:00:15]} 72. c5 {[%emt 0:00:06]} Be4 {[%emt 0:00:07]} 73. Na2 {[%emt 0:00:07]} Bc6 {[%emt 0:00:14]} 74. Nc3 {[%emt 0:00:10]} Bf3 {[%emt 0:00:05]} 75. Nb5 {[%emt 0:00:23]} Bg2 {[%emt 0:00:06]} 76. Nd4 {[%emt 0:00:12]} Bd5 {[%emt 0:00:05]} 77. Ne2 {[%emt 0:00:21]} Bf3 {[%emt 0:00:10]} 78. Nf4 {[%emt 0:00:04]} Bh1 {[%emt 0:00:08]} 79. Ng6 {[%emt 0:00:10]} Bg2 {[%emt 0:00:07]} 80. Ne5+ {[%emt 0:00:06]} Ke6 {[%emt 0:00:14]} 81. Nd3 {[%emt 0:00:13]} Kd7 {[%emt 0:00:08]} 82. Nf4 {[%emt 0:00:10]} Bh1 {[%emt 0:00:02]} 83. Kb5 {[%emt 0:00:08]} Ba8 {[%emt 0:00:11]} 84. Kc4 {[%emt 0:00:10]} Bh1 {[%emt 0:00:03]} 85. Kd4 {[%emt 0:00:10]} Kc6 {[%emt 0:00:05]} 86. Nd3 {[%emt 0:00:05]} Kd7 {[%emt 0:00:04]} 87. Nf2 {[%emt 0:00:19]} Bg2 {[%emt 0:00:04]} 88. Nd3 {[%emt 0:00:12]} Bh1 {[%emt 0:00:03]} 89. Nb4 {[%emt 0:00:13]} Bg2 {[%emt 0:00:05]} 90. Nc2 {[%emt 0:00:05]} Bh1 {[%emt 0:00:04]} 91. Ne3 {[%emt 0:00:09]} Bb7 {[%emt 0:00:05]} 92. Kc4 {[%emt 0:00:07]} Ba8 {[%emt 0:00:10]} 93. Kb5 {[%emt 0:00:06]} Be4 {[%emt 0:00:04]} 94. Kb6 {[%emt 0:00:10]} Bh1 {[%emt 0:00:04]} 95. Nc4 {[%emt 0:00:07]} Bg2 {[%emt 0:00:11]} 96. Ne5+ {[%emt 0:00:02]} Kc8 {[%emt 0:00:03]} 97. Nc6 {[%emt 0:00:04]} Kd7 {[%emt 0:00:06]} 98. Nb4 {[%emt 0:00:15]} Bh1 {[%emt 0:00:05]} 1/2-1/2

[Event "8th Gibraltar U16-Junior 2018"]
[Site "Caleta"]
[Date "2018.08.17"]
[Round "1"]
[White "Gough, Theo"]
[Black "Kirupakaran, Vishnu"]
[Result "0-1"]
[ECO "D30"]
[WhiteElo "1346"]
[BlackElo "1786"]
[Annotator "NA RC"]
[PlyCount "88"]
[EventDate "2018.08.17"]
[EventType "swiss"]
[EventCountry "GGB"]
[SourceTitle "playchess.com"]
[Source "ChessBase"]
[SourceQuality "1"]
[TimeControl "6600+10"]

1. d4 {[%emt 0:00:00]} d5 {[%emt 0:00:00]} 2. c4 {[%emt 0:00:00]} c6 {[%emt 0:00:00]} 3. Nf3 {[%emt 0:00:04]} Nf6 {[%emt 0:00:00]} 4. e3 {[%emt 0:00:29]} e6 {[%emt 0:00:45]} 5. b3 {[%emt 0:00:21]} Nbd7 {[%emt 0:00:12]} 6. Bb2 {[%emt 0:00:50]} Bd6 {[%emt 0:00:09]} 7. Nbd2 {[%emt 0:00:36]} O-O {[%emt 0:00:14]} 8. Bd3 {[%emt 0:00:28]} b6 {[%emt 0:00:12]} 9. O-O {[%emt 0:00:54]} Bb7 {[%emt 0:00:08]} 10. Ne5 {[%emt 0:00:28]} c5 {[%emt 0:02:21]} 11. f4 {[%emt 0:01:42]} Ne4 {[%emt 0:18:31]} 12. Qc2 {[%emt 0:10:18]} Ndf6 {[%emt 0:12:55]} 13. Rad1 {[%emt 0:12:01]} Qe7 {[%emt 0:04:09]} 14. Nxe4 {[%emt 0:11:44]} dxe4 {[%emt 0:04:38]} 15. Be2 {[%emt 0:01:21]} Rfd8 {[%emt 0:04:35]} 16. a4 {[%emt 0:28:29]} Qc7 {[%emt 0:09:31]} 17. Qc3 {[%emt 0:05:49]} cxd4 {[%emt 0:10:58]} 18. exd4 {[%emt 0:05:33]} Rac8 {[%emt 0:05:51]} 19. g3 {[%emt 0:13:19]} Ne8 {[%emt 0:12:44]} 20. Bg4 {[%emt 0:06:37]} Qe7 {[%emt 0:04:49]} 21. d5 {[%emt 0:01:49]} f5 {[%emt 0:04:28]} 22. Bh5 {[%emt 0:04:50]} exd5 {[%emt 0:09:31]} 23. Nf7 {[%emt 0:00:30]} Bc5+ {[%emt 0:01:41]} 24. Kg2 {[%emt 0:00:52]} d4 {[%emt 0:00:42]} 25. Qe1 {[%emt 0:01:10]} e3+ {[%emt 0:01:41]} 26. Kh3 {[%emt 0:00:04]} e2 {[%emt 0:02:35]} 27. Nxd8 {[%emt 0:00:40]} exf1=Q+ {[%emt 0:00:54]} 28. Qxf1 {[%emt 0:00:05]} Rxd8 {[%emt 0:00:08]} 29. Re1 {[%emt 0:00:22]} Qf6 {[%emt 0:00:16]} 30. Qe2 {[%emt 0:01:31]} g6 {[%emt 0:00:08]} 31. Bf3 {[%emt 0:00:22]} Bxf3 {[%emt 0:00:07]} 32. Qxf3 {[%emt 0:00:02]} Qf7 {[%emt 0:00:15]} 33. Rd1 {[%emt 0:00:31]} Nf6 {[%emt 0:00:04]} 34. b4 {[%emt 0:01:04]} Bxb4 {[%emt 0:00:15]} 35. Rxd4 {[%emt 0:00:03]} Rxd4 {[%emt 0:00:09]} 36. Bxd4 {[%emt 0:00:02]} Ne4 {[%emt 0:00:08]} 37. Qb3 {[%emt 0:00:23]} Bc5 {[%emt 0:00:08]} 38. Bxc5 {[%emt 0:00:09]} Nxc5 {[%emt 0:00:02]} 39. Qc2 {[%emt 0:00:12]} Kg7 {[%emt 0:00:20]} 40. Qc3+ {[%emt 0:00:07]} Qf6 {[%emt 0:00:01]} 41. Qxf6+ {[%emt 0:00:11]} Kxf6 {[%emt 0:00:01]} 42. g4 {[%emt 0:00:10]} fxg4+ {[%emt 0:00:02]} 43. Kxg4 {[%emt 0:00:01]} Nxa4 {[%emt 0:00:01]} 44. h4 {[%emt 0:00:14]} Nb2 {[%emt 0:00:02]} 0-1

[Event "8th Gibraltar U16-Junior 2018"]
[Site "Caleta"]
[Date "2018.08.17"]
[Round "1"]
[White "Dhanwani, Aryan"]
[Black "Patel, Devan"]
[Result "0-1"]
[ECO "C50"]
[WhiteElo "1169"]
[BlackElo "1716"]
[Annotator "NA RC"]
[PlyCount "80"]
[EventDate "2018.08.17"]
[EventType "swiss"]
[EventCountry "GGB"]
[SourceTitle "playchess.com"]
[Source "ChessBase"]
[SourceQuality "1"]
[TimeControl "6600+10"]

1. e4 {[%emt 0:00:11]} Nc6 {[%emt 0:01:09]} 2. Nf3 {[%emt 0:01:28]} e5 {[%emt 0:00:51]} 3. Bc4 {[%emt 0:01:37]} Bc5 {[%emt 0:00:15]} 4. Nc3 {[%emt 0:03:11]} Nf6 {[%emt 0:00:40]} 5. d3 {[%emt 0:01:30]} O-O {[%emt 0:00:20]} 6. Bg5 {[%emt 0:01:00]} h6 {[%emt 0:01:52]} 7. Bh4 {[%emt 0:00:43]} Be7 {[%emt 0:01:06]} 8. d4 {[%emt 0:02:31]} exd4 {[%emt 0:04:27]} 9. Nxd4 {[%emt 0:00:26]} Nxe4 {[%emt 0:04:46]} 10. Nxc6 {[%emt 0:12:47]} bxc6 {[%emt 0:00:29]} 11. Bxe7 {[%emt 0:02:27]} Qxe7 {[%emt 0:00:02]} 12. O-O {[%emt 0:00:48]} Nxc3 {[%emt 0:03:02]} 13. bxc3 {[%emt 0:02:05]} d5 {[%emt 0:00:56]} 14. Re1 {[%emt 0:02:02]} Qf6 {[%emt 0:01:08]} 15. Bb3 {[%emt 0:01:37]} Qxc3 {[%emt 0:02:17]} 16. Re3 {[%emt 0:01:14]} Qf6 {[%emt 0:00:55]} 17. Rf3 {[%emt 0:01:01]} Qd6 {[%emt 0:00:33]} 18. Qd4 {[%emt 0:03:08]} Re8 {[%emt 0:02:04]} 19. Rg3 {[%emt 0:00:29]} Qe5 {[%emt 0:00:29]} 20. Qxe5 {[%emt 0:01:47]} Rxe5 {[%emt 0:00:39]} 21. Re3 {[%emt 0:01:55]} Rxe3 {[%emt 0:00:27]} 22. fxe3 {[%emt 0:00:06]} a5 {[%emt 0:00:47]} 23. Ba4 {[%emt 0:00:50]} Ra6 {[%emt 0:02:45]} 24. Rb1 {[%emt 0:00:35]} Rb6 {[%emt 0:00:36]} 25. Rxb6 {[%emt 0:00:23]} cxb6 {[%emt 0:00:07]} 26. Bxc6 {[%emt 0:00:04]} Be6 {[%emt 0:00:11]} 27. a3 {[%emt 0:03:12]} Kf8 {[%emt 0:00:09]} 28. Kf2 {[%emt 0:01:32]} Ke7 {[%emt 0:00:08]} 29. Ke2 {[%emt 0:00:55]} Kd6 {[%emt 0:00:11]} 30. Be8 {[%emt 0:00:45]} Kc5 {[%emt 0:00:26]} 31. a4 {[%emt 0:01:52]} Kc4 {[%emt 0:01:37]} 32. Kd2 {[%emt 0:01:07]} f6 {[%emt 0:01:07]} 33. h4 {[%emt 0:06:03]} Bc8 {[%emt 0:01:02]} 34. Bb5+ {[%emt 0:00:40]} Kc5 {[%emt 0:00:07]} 35. c3 {[%emt 0:03:31]} Bb7 {[%emt 0:02:23]} 36. g3 {[%emt 0:02:35]} Bc6 {[%emt 0:00:26]} 37. Bxc6 {[%emt 0:00:25]} Kxc6 {[%emt 0:00:07]} 38. Kc2 {[%emt 0:00:12]} Kc5 {[%emt 0:00:10]} 39. Kb3 {[%emt 0:00:33]} b5 {[%emt 0:00:05]} 40. axb5 {[%emt 0:01:51]} Kxb5 {[%emt 0:00:05]} 0-1

[Event "8th Gibraltar U16-Junior 2018"]
[Site "Caleta"]
[Date "2018.08.17"]
[Round "1"]
[White "Harbinson, Alec Ryan"]
[Black "Cortes Villa, Jaime"]
[Result "0-1"]
[ECO "B28"]
[WhiteElo "1043"]
[BlackElo "1700"]
[Annotator "NA RC"]
[PlyCount "56"]
[EventDate "2018.08.17"]
[EventType "swiss"]
[EventCountry "GGB"]
[SourceTitle "playchess.com"]
[Source "ChessBase"]
[SourceQuality "1"]
[TimeControl "6600+10"]

1. e4 {[%emt 0:00:00]} c5 {[%emt 0:00:01]} 2. Nf3 {[%emt 0:00:00]} a6 {[%emt 0:00:18]} 3. d4 {[%emt 0:00:20]} cxd4 {[%emt 0:00:08]} 4. Nxd4 {[%emt 0:00:01]} Nf6 {[%emt 0:00:09]} 5. Nc3 {[%emt 0:00:02]} e5 {[%emt 0:00:08]} 6. Nf3 {[%emt 0:00:17]} Bb4 {[%emt 0:00:07]} 7. Bd2 {[%emt 0:00:05]} d6 {[%emt 0:00:12]} 8. a3 {[%emt 0:01:10]} Bxc3 {[%emt 0:00:19]} 9. Bxc3 {[%emt 0:01:01]} Nxe4 {[%emt 0:00:20]} 10. Bd3 {[%emt 0:02:10]} Nxc3 {[%emt 0:00:13]} 11. bxc3 {[%emt 0:00:02]} f5 {[%emt 0:01:56]} 12. Bc4 {[%emt 0:02:14]} Qf6 {[%emt 0:01:56]} 13. Qd2 {[%emt 0:06:02]} Be6 {[%emt 0:04:38]} 14. Bxe6 {[%emt 0:14:57]} Qxe6 {[%emt 0:00:06]} 15. Rd1 {[%emt 0:00:10]} Nd7 {[%emt 0:24:27]} 16. Qxd6 {[%emt 0:04:04]} Qxd6 {[%emt 0:00:05]} 17. Rxd6 {[%emt 0:00:09]} Ke7 {[%emt 0:00:03]} 18. Rd2 {[%emt 0:02:38]} Rac8 {[%emt 0:01:16]} 19. Rd3 {[%emt 0:42:11]} Rc5 {[%emt 0:00:40]} 20. Kd2 {[%emt 0:02:26]} Nf6 {[%emt 0:01:05]} 21. h3 {[%emt 0:02:43]} Ne4+ {[%emt 0:38:11]} 22. Ke1 {[%emt 0:03:29]} Nxc3 {[%emt 0:00:20]} 23. Nd2 {[%emt 0:03:27]} e4 {[%emt 0:02:05]} 24. Rg3 {[%emt 0:01:07]} g6 {[%emt 0:00:28]} 25. Rg5 {[%emt 0:00:45]} Rd8 {[%emt 0:00:37]} 26. g4 {[%emt 0:01:27]} Rcd5 {[%emt 0:00:14]} 27. Rg1 {[%emt 0:05:00]} Rxd2 {[%emt 0:00:09]} 28. f3 {[%emt 0:00:52]} Re2+ {[%emt 0:00:07]} 0-1

[Event "8th Gibraltar U16-Junior 2018"]
[Site "Caleta"]
[Date "2018.08.17"]
[Round "1"]
[White "Jain, Anushree"]
[Black "Onslow, Teddy"]
[Result "0-1"]
[ECO "C00"]
[WhiteElo "1006"]
[BlackElo "1669"]
[Annotator "NA RC"]
[PlyCount "88"]
[EventDate "2018.08.17"]
[EventType "swiss"]
[EventCountry "GGB"]
[SourceTitle "playchess.com"]
[Source "ChessBase"]
[SourceQuality "1"]
[TimeControl "6600+10"]

1. e4 {[%emt 0:00:00]} e6 {[%emt 0:00:00]} 2. g3 {[%emt 0:00:27]} d5 {[%emt 0:00:10]} 3. d3 {[%emt 0:00:55]} dxe4 {[%emt 0:02:10]} 4. dxe4 {[%emt 0:00:59]} Qxd1+ {[%emt 0:00:07]} 5. Kxd1 {[%emt 0:01:02]} Bc5 {[%emt 0:00:46]} 6. f3 {[%emt 0:03:01]} b6 {[%emt 0:02:10]} 7. Nc3 {[%emt 0:00:54]} Bb7 {[%emt 0:01:31]} 8. Bf4 {[%emt 0:03:36]} Bd6 {[%emt 0:01:46]} 9. Nge2 {[%emt 0:05:37]} Nc6 {[%emt 0:02:01]} 10. Be3 {[%emt 0:03:36]} O-O-O {[%emt 0:00:39]} 11. Kc1 {[%emt 0:03:52]} Nge7 {[%emt 0:05:44]} 12. Nf4 {[%emt 0:03:53]} Ne5 {[%emt 0:03:41]} 13. Be2 {[%emt 0:03:45]} N7c6 {[%emt 0:10:11]} 14. b3 {[%emt 0:07:02]} Ba3+ {[%emt 0:06:51]} 15. Kb1 {[%emt 0:01:45]} a6 {[%emt 0:02:10]} 16. Nd3 {[%emt 0:04:33]} Nxd3 {[%emt 0:04:59]} 17. Bxd3 {[%emt 0:01:19]} Rd7 {[%emt 0:06:27]} 18. Bc1 {[%emt 0:03:56]} Be7 {[%emt 0:07:27]} 19. a3 {[%emt 0:06:30]} Nd4 {[%emt 0:04:25]} 20. Rd1 {[%emt 0:08:18]} Nxf3 {[%emt 0:03:38]} 21. Be3 {[%emt 0:07:51]} Bf6 {[%emt 0:04:10]} 22. Kb2 {[%emt 0:04:16]} Rhd8 {[%emt 0:03:20]} 23. Be2 {[%emt 0:05:24]} Rxd1 {[%emt 0:01:51]} 24. Bxd1 {[%emt 0:03:11]} Bxe4 {[%emt 0:01:50]} 25. Be2 {[%emt 0:04:04]} Bb7 {[%emt 0:01:57]} 26. Rf1 {[%emt 0:05:17]} Nd4 {[%emt 0:02:22]} 27. Kc1 {[%emt 0:02:02]} Nxe2+ {[%emt 0:03:54]} 28. Nxe2 {[%emt 0:00:30]} a5 {[%emt 0:02:30]} 29. h4 {[%emt 0:03:13]} Ba6 {[%emt 0:01:40]} 30. c4 {[%emt 0:01:44]} a4 {[%emt 0:11:16]} 31. bxa4 {[%emt 0:02:06]} Bxc4 {[%emt 0:00:09]} 32. Re1 {[%emt 0:01:13]} Rd3 {[%emt 0:01:45]} 33. Bg5 {[%emt 0:01:36]} Bxg5+ {[%emt 0:00:50]} 34. hxg5 {[%emt 0:00:15]} Re3 {[%emt 0:00:26]} 35. Kd2 {[%emt 0:01:30]} Rxe2+ {[%emt 0:00:06]} 36. Rxe2 {[%emt 0:00:07]} Bxe2 {[%emt 0:00:03]} 37. Kxe2 {[%emt 0:00:07]} Kb7 {[%emt 0:00:14]} 38. Kd2 {[%emt 0:01:17]} Ka6 {[%emt 0:00:07]} 39. Kc2 {[%emt 0:00:51]} Ka5 {[%emt 0:00:08]} 40. Kb2 {[%emt 0:00:01]} Kxa4 {[%emt 0:00:12]} 41. Ka2 {[%emt 0:00:05]} e5 {[%emt 0:00:05]} 42. Kb2 {[%emt 0:00:09]} e4 {[%emt 0:00:05]} 43. Kc1 {[%emt 0:00:14]} Kxa3 {[%emt 0:00:03]} 44. Kd1 {[%emt 0:00:07]} b5 {[%emt 0:00:05]} 0-1

[Event "8th Gibraltar U16-Junior 2018"]
[Site "Caleta"]
[Date "2018.08.17"]
[Round "2"]
[White "Cuellar Montes, Alejandro"]
[Black "Lovell, William Pm"]
[Result "1-0"]
[ECO "D20"]
[WhiteElo "2074"]
[BlackElo "1783"]
[Annotator "NA RC"]
[PlyCount "67"]
[EventDate "2018.08.17"]
[EventType "swiss"]
[EventCountry "GGB"]
[SourceTitle "playchess.com"]
[Source "ChessBase"]
[SourceQuality "1"]
[TimeControl "6600+10"]

1. d4 {[%emt 0:00:00]} d5 {[%emt 0:00:00]} 2. c4 {[%emt 0:00:01]} dxc4 {[%emt 0:00:00]} 3. e4 {[%emt 0:00:05]} e5 {[%emt 0:00:08]} 4. Nf3 {[%emt 0:00:05]} Bb4+ {[%emt 0:00:48]} 5. Nc3 {[%emt 0:00:21]} c5 {[%emt 0:02:31]} 6. dxe5 {[%emt 0:11:13]} Bxc3+ {[%emt 0:03:47]} 7. bxc3 {[%emt 0:00:32]} Qxd1+ {[%emt 0:04:57]} 8. Kxd1 {[%emt 0:00:07]} b5 {[%emt 0:01:33]} 9. a4 {[%emt 0:01:10]} Bd7 {[%emt 0:00:41]} 10. axb5 {[%emt 0:00:19]} Bxb5 {[%emt 0:00:24]} 11. Nd2 {[%emt 0:03:56]} Nd7 {[%emt 0:02:09]} 12. Bxc4 {[%emt 0:01:11]} Bc6 {[%emt 0:00:23]} 13. e6 {[%emt 0:04:14]} fxe6 {[%emt 0:00:30]} 14. Bxe6 {[%emt 0:00:13]} Ngf6 {[%emt 0:00:24]} 15. f3 {[%emt 0:02:09]} Ne5 {[%emt 0:01:23]} 16. Kc2 {[%emt 0:17:50]} Ke7 {[%emt 0:01:05]} 17. Bb3 {[%emt 0:04:47]} Bb5 {[%emt 0:01:05]} 18. c4 {[%emt 0:02:00]} Bd7 {[%emt 0:01:15]} 19. Ra5 {[%emt 0:11:32]} Rhc8 {[%emt 0:00:37]} 20. Ba3 {[%emt 0:01:55]} Nc6 {[%emt 0:04:21]} 21. Bxc5+ {[%emt 0:03:57]} Ke8 {[%emt 0:00:46]} 22. Ra3 {[%emt 0:01:49]} Be6 {[%emt 0:02:57]} 23. Rha1 {[%emt 0:05:22]} Rc7 {[%emt 0:01:11]} 24. Ba4 {[%emt 0:01:10]} Nd7 {[%emt 0:01:06]} 25. Bxc6 {[%emt 0:03:02]} Rxc6 {[%emt 0:00:19]} 26. Bxa7 {[%emt 0:00:19]} Bxc4 {[%emt 0:00:33]} 27. Nxc4 {[%emt 0:00:20]} Rxc4+ {[%emt 0:00:02]} 28. Kd3 {[%emt 0:00:31]} Ne5+ {[%emt 0:00:31]} 29. Ke2 {[%emt 0:05:48]} Rc2+ {[%emt 0:00:19]} 30. Kf1 {[%emt 0:00:13]} Nc4 {[%emt 0:01:01]} 31. Rd3 {[%emt 0:12:32]} Ne5 {[%emt 0:02:03]} 32. Rdd1 {[%emt 0:01:26]} Nc4 {[%emt 0:01:29]} 33. Kg1 {[%emt 0:04:30]} Nb2 {[%emt 0:02:51]} 34. Bd4 {[%emt 0:03:23]} 1-0

[Event "8th Gibraltar U16-Junior 2018"]
[Site "Caleta"]
[Date "2018.08.17"]
[Round "2"]
[White "Onslow, Alfie"]
[Black "Lorente Serrano, Rosa Adela"]
[Result "1-0"]
[ECO "B96"]
[WhiteElo "2040"]
[BlackElo "1682"]
[Annotator "NA RC"]
[PlyCount "53"]
[EventDate "2018.08.17"]
[EventType "swiss"]
[EventCountry "GGB"]
[SourceTitle "playchess.com"]
[Source "ChessBase"]
[SourceQuality "1"]
[TimeControl "6600+10"]

1. e4 {[%emt 0:00:00]} c5 {[%emt 0:00:02]} 2. Nf3 {[%emt 0:00:00]} d6 {[%emt 0:00:11]} 3. d4 {[%emt 0:00:05]} cxd4 {[%emt 0:00:42]} 4. Nxd4 {[%emt 0:00:10]} Nf6 {[%emt 0:00:27]} 5. Nc3 {[%emt 0:00:05]} a6 {[%emt 0:00:55]} 6. Bg5 {[%emt 0:00:09]} e6 {[%emt 0:01:32]} 7. f4 {[%emt 0:00:13]} h6 {[%emt 0:03:10]} 8. Bh4 {[%emt 0:00:07]} Nbd7 {[%emt 0:01:44]} 9. Qe2 {[%emt 0:03:00]} Qc7 {[%emt 0:01:59]} 10. O-O-O {[%emt 0:02:13]} Be7 {[%emt 0:08:05]} 11. g4 {[%emt 0:00:27]} Nxe4 {[%emt 0:07:26]} 12. Nxe4 {[%emt 0:01:58]} Bxh4 {[%emt 0:00:13]} 13. Nf5 {[%emt 0:02:00]} d5 {[%emt 0:03:51]} 14. Ned6+ {[%emt 0:12:35]} Kf8 {[%emt 0:01:09]} 15. Nxf7 {[%emt 0:05:36]} Kxf7 {[%emt 0:03:42]} 16. Nxh4 {[%emt 0:00:08]} Qxf4+ {[%emt 0:00:08]} 17. Kb1 {[%emt 0:00:12]} Nf6 {[%emt 0:02:16]} 18. h3 {[%emt 0:05:15]} Re8 {[%emt 0:07:54]} 19. Bg2 {[%emt 0:02:25]} Kg8 {[%emt 0:01:09]} 20. Rhf1 {[%emt 0:01:21]} Qd6 {[%emt 0:00:12]} 21. Qd3 {[%emt 0:14:28]} Qc7 {[%emt 0:09:06]} 22. Rxf6 {[%emt 0:02:58]} Qe7 {[%emt 0:11:20]} 23. Qg6 {[%emt 0:02:07]} Qxf6 {[%emt 0:04:22]} 24. Qxe8+ {[%emt 0:00:24]} Kh7 {[%emt 0:00:08]} 25. Nf3 {[%emt 0:02:50]} b5 {[%emt 0:02:17]} 26. Nd4 {[%emt 0:02:05]} e5 {[%emt 0:03:45]} 27. Qc6 {[%emt 0:03:59]} 1-0

[Event "8th Gibraltar U16-Junior 2018"]
[Site "Caleta"]
[Date "2018.08.17"]
[Round "2"]
[White "Jayawarna, Nugith"]
[Black "Seleznev, Egor"]
[Result "1-0"]
[ECO "D36"]
[WhiteElo "2013"]
[BlackElo "1388"]
[Annotator "NA RC"]
[PlyCount "69"]
[EventDate "2018.08.17"]
[EventType "swiss"]
[EventCountry "GGB"]
[SourceTitle "playchess.com"]
[Source "ChessBase"]
[SourceQuality "1"]
[TimeControl "6600+10"]

1. c4 {[%emt 2:50:26]} e6 {[%emt 0:00:19]} 2. Nc3 {[%emt 0:00:07]} d5 {[%emt 0:00:32]} 3. d4 {[%emt 0:00:10]} Nf6 {[%emt 0:00:07]} 4. cxd5 {[%emt 0:00:06]} exd5 {[%emt 0:00:21]} 5. Bg5 {[%emt 0:00:04]} c6 {[%emt 0:00:18]} 6. Qc2 {[%emt 0:01:17]} Be7 {[%emt 0:00:53]} 7. e3 {[%emt 0:00:14]} O-O {[%emt 0:00:48]} 8. Bd3 {[%emt 0:00:24]} Nbd7 {[%emt 0:00:43]} 9. Nf3 {[%emt 0:01:20]} Re8 {[%emt 0:00:37]} 10. O-O {[%emt 0:01:17]} Nf8 {[%emt 0:00:16]} 11. Rab1 {[%emt 0:20:39]} Ng6 {[%emt 0:01:06]} 12. b4 {[%emt 0:03:09]} Ne4 {[%emt 0:01:36]} 13. Bxe7 {[%emt 0:00:36]} Qxe7 {[%emt 0:00:15]} 14. b5 {[%emt 0:03:32]} Bg4 {[%emt 0:05:35]} 15. Nd2 {[%emt 0:06:34]} Nxd2 {[%emt 0:02:05]} 16. Qxd2 {[%emt 0:00:03]} Qg5 {[%emt 0:00:55]} 17. f4 {[%emt 0:09:35]} Qh5 {[%emt 0:04:07]} 18. bxc6 {[%emt 0:02:31]} bxc6 {[%emt 0:01:02]} 19. Rb7 {[%emt 0:09:18]} Nh4 {[%emt 0:07:33]} 20. e4 {[%emt 0:05:05]} Reb8 {[%emt 0:12:12]} 21. Rfb1 {[%emt 0:02:56]} Rxb7 {[%emt 0:00:51]} 22. Rxb7 {[%emt 0:00:05]} Bf3 {[%emt 0:02:23]} 23. Qb2 {[%emt 0:05:16]} g6 {[%emt 0:05:29]} 24. gxf3 {[%emt 0:24:33]} Qxf3 {[%emt 0:02:21]} 25. Qe2 {[%emt 0:02:27]} Qxf4 {[%emt 0:00:44]} 26. Rb1 {[%emt 0:02:52]} Nf3+ {[%emt 0:02:09]} 27. Kg2 {[%emt 0:01:24]} Nxd4 {[%emt 0:01:24]} 28. Qf2 {[%emt 0:00:21]} Qg5+ {[%emt 0:04:52]} 29. Kh1 {[%emt 0:00:29]} Ne6 {[%emt 0:01:43]} 30. exd5 {[%emt 0:00:40]} cxd5 {[%emt 0:00:43]} 31. Rf1 {[%emt 0:00:28]} f5 {[%emt 0:03:02]} 32. Nxd5 {[%emt 0:00:47]} Rd8 {[%emt 0:03:00]} 33. Bc4 {[%emt 0:01:04]} Nf8 {[%emt 0:07:44]} 34. Rg1 {[%emt 0:01:00]} Qh6 {[%emt 0:01:55]} 35. Qd4 {[%emt 0:02:39]} 1-0